bitfinex-derivatives/quotes_ETHF0:USTF0_20250417
["timestamp","ask_amount","ask_price","bid_price","bid_amount"]
[1744894460137,0.00937792,1601.1,1601.0,3.01486]
[1744894460531,1.25886792,1601.1,1601.0,3.01486]
[1744894460830,0.00937792,1601.1,1601.0,3.01486]
[1744894474544,1.67907792,1601.1,1601.0,3.01486]
[1744894474844,2.49407792,1601.1,1601.0,3.01486]
[1744894475046,3.74356792,1601.1,1601.0,3.01486]
[1744894475247,2.49407792,1601.1,1601.0,3.01486]
[1744894475449,1.24936,1601.3,1601.2,1.24933]
[1744894475643,2.84156,1601.3,1601.2,4.45713]
[1744894478341,2.84156,1601.3,1601.2,4.45721]
[1744894478839,6.5922,1601.3,1601.0,3.2078]
[1744894479044,3.12411,1601.0,1600.8,3.2078]
[1744894479246,0.88047792,1601.4,1600.6,7.07974]
[1744894479247,1.2498,1600.7,1600.6,7.07974]
[1744894479444,3.12438,1600.8,1600.5,3.2078]
[1744894479748,1.24988,1600.6,1600.5,3.2078]
[1744894480349,3.72378,1600.6,1600.5,3.2078]
[1744894480649,3.72378,1600.6,1600.5,4.45775]
[1744894482351,2.4739,1600.6,1600.5,4.45775]
[1744894483152,3.72378,1600.6,1600.5,4.45775]
[1744894484049,1.24988,1600.6,1600.5,4.45775]
[1744894484253,1.24978,1600.8,1600.7,1.24975]
[1744894484554,1.24058477,1600.8,1600.7,1.24975]
[1744894485358,2.92658477,1600.8,1600.7,1.24975]
[1744894488055,1.24988,1600.7,1600.6,1.24984]
[1744894488356,2.92628,1600.7,1600.6,1.24064477]
[1744894491156,1.24988,1600.6,1600.5,4.45769]
[1744894491456,4.53638,1600.6,1600.5,3.2078]
[1744894491661,4.53638,1600.6,1600.5,4.45775]
[1744894492560,4.53638,1600.6,1600.5,3.2078]
[1744894492859,4.53638,1600.6,1600.5,4.45775]
[1744894495257,2.88558,1600.6,1600.5,4.45775]
[1744894495457,2.88558,1600.6,1600.5,7.03255]
[1744894496053,2.88558,1600.6,1600.5,4.45775]
[1744894498864,2.88558,1600.6,1600.5,3.2078]
[1744894499862,2.88558,1600.6,1600.5,4.45775]
[1744894501361,2.88558,1600.6,1600.5,3.2078]
[1744894501962,2.88558,1600.6,1600.5,4.45775]
[1744894502465,2.88558,1600.6,1600.5,3.2078]
[1744894503659,1.25003,1600.4,1600.3,3.20780792]
[1744894504064,2.98733,1600.4,1600.3,3.20780792]
[1744894504358,2.98733,1600.4,1600.3,7.92e-06]
[1744894504567,7.98733,1600.4,1600.3,7.92e-06]
[1744894505463,2.98733,1600.4,1600.3,7.92e-06]
[1744894507872,7.98733,1600.4,1600.3,7.92e-06]
[1744894508358,2.98733,1600.4,1600.3,7.92e-06]
[1744894516864,2.98733,1600.4,1600.3,3.20780792]
[1744894517270,2.98733,1600.4,1600.3,5.70310792]
[1744894519969,2.98733,1600.4,1600.3,7.92e-06]
[1744894524478,11.19513,1600.4,1600.3,7.92e-06]
[1744894525066,11.31003502,1600.4,1600.3,7.92e-06]
[1744894525279,11.19513,1600.4,1600.3,7.92e-06]
[1744894525678,11.31003481,1600.4,1600.3,7.92e-06]
[1744894526080,11.310035,1600.4,1600.3,7.92e-06]
[1744894526282,11.19513,1600.4,1600.3,7.92e-06]
[1744894526982,11.310038,1600.4,1600.3,7.92e-06]
[1744894527675,11.31003997,1600.4,1600.3,7.92e-06]
[1744894528176,11.77625478,1600.4,1600.3,7.92e-06]
[1744894528376,1.2505,1599.8,1599.7,0.8218]
[1744894529580,2.9162,1599.8,1599.7,0.8218]
[1744894529770,1.25058,1599.7,1599.6,0.88607792]
[1744894529968,2.91628,1599.7,1599.6,0.88607792]
[1744894533077,2.91628,1599.7,1599.6,2.13673792]
[1744894533273,2.91628,1599.7,1599.6,3.90123792]
[1744894533581,1.25058,1599.7,1599.6,8.90123792]
[1744894533783,1.25058,1599.7,1599.6,7.65057792]
[1744894534083,1.25058,1599.7,1599.6,3.90123792]
[1744894534386,1.25058,1599.7,1599.6,2.65057792]
[1744894535390,1.25058,1599.7,1599.6,0.88607792]
[1744894535887,1.25058,1599.7,1599.6,0.00937792]
[1744894536387,9.45838,1599.7,1599.6,7.92e-06]
[1744894537880,4.45838,1599.7,1599.6,7.92e-06]
[1744894538885,9.45838,1599.7,1599.6,7.92e-06]
[1744894542193,4.45838,1599.7,1599.6,7.92e-06]
[1744894550784,1.25058,1599.7,1599.6,7.92e-06]
[1744894550993,4.45838,1599.7,1599.6,7.92e-06]
[1744894551794,2.97958,1599.7,1599.6,7.92e-06]
[1744894551997,1.25058,1599.7,1599.6,7.92e-06]
[1744894552288,2.97958,1599.7,1599.6,7.92e-06]
[1744894552486,6.18738,1599.7,1599.6,7.92e-06]
[1744894558595,1.25058,1599.7,1599.6,7.92e-06]
[1744894558901,1.25058,1599.7,1599.6,9.45846792]
[1744894559803,1.25058,1599.7,1599.6,3.20780792]
[1744894559994,1.25058,1599.7,1599.6,4.45846792]
[1744894560301,1.25058,1599.7,1599.6,6.16226792]
[1744894560489,1.25058,1599.7,1599.6,4.91160792]
[1744894560893,1.25058,1599.7,1599.6,6.16226792]
[1744894561095,1.25053,1599.8,1599.7,1.2505]
[1744894561297,1.25053,1599.8,1599.7,4.6395]
[1744894561498,1.25053,1599.8,1599.7,9.6395]
[1744894564306,1.25053,1599.8,1599.7,3.389]
[1744894564607,2.88713,1599.8,1599.7,3.389]
[1744894568909,2.88713,1599.8,1599.7,1.6548]
[1744894571908,1.25058,1599.7,1599.6,7.92e-06]
[1744894572112,7.80938,1599.7,1599.6,7.92e-06]
[1744894572311,4.60158,1599.7,1599.6,7.92e-06]
[1744894576119,1.25058,1599.7,1599.6,7.92e-06]
[1744894576419,1.25058,1599.7,1599.6,1.60590792]
[1744894576916,2.97098,1599.7,1599.6,1.60590792]
[1744894577418,2.97098,1599.7,1599.6,7.92e-06]
[1744894577625,3.78618,1599.7,1599.6,7.92e-06]
[1744894582218,6.99398,1599.7,1599.6,7.92e-06]
[1744894583919,11.99398,1599.7,1599.6,7.92e-06]
[1744894585018,6.99398,1599.7,1599.6,7.92e-06]
[1744894586011,3.78618,1599.7,1599.6,7.92e-06]
[1744894589124,17.57425138,1599.9,1599.8,1.2505]
[1744894589125,3.2727593,1599.9,1599.8,1.2505]
[1744894589323,3.2727593,1599.9,1599.8,4.4583]
[1744894589517,25.82664012,1600.2,1600.1,1.25027]
[1744894589722,25.82664012,1600.2,1600.1,4.45807]
[1744894590026,25.82664012,1600.2,1600.1,9.45807]
[1744894590427,25.82664012,1600.2,1600.1,9.93984814]
[1744894591432,25.82664012,1600.2,1600.1,10.73635985]
[1744894593231,25.82664012,1600.2,1600.1,12.42710059]
[1744894593724,2.85669,1600.4,1600.3,1.25011]
[1744894594034,2.85669,1600.4,1600.3,4.45791]
[1744894595333,1.6066,1600.4,1600.3,4.45791]
[1744894596331,2.85663,1600.4,1600.3,4.45791]
[1744894596637,1.25934792,1600.5,1600.4,1.25003]
[1744894596829,1.25934792,1600.5,1600.4,2.85703]
[1744894599135,2.93284792,1600.5,1600.4,2.85703]
[1744894599437,1.25003,1600.4,1600.3,4.4579]
[1744894599631,3.72083,1600.4,1600.3,4.4579]
[1744894601536,3.72083,1600.4,1600.3,6.2128]
[1744894602433,7.92e-06,1600.5,1600.3,4.9627]
[1744894602642,1.2495,1601.1,1601.0,1.24953]
[1744894602836,2.5707,1601.2,1601.1,1.25868523]
[1744894603035,3.82011,1601.2,1601.1,1.25868523]
[1744894603433,3.81091477,1601.2,1601.1,1.24949]
[1744894604437,3.81091477,1601.2,1601.1,3.2078]
[1744894604639,3.81091477,1601.2,1601.1,4.45729]
[1744894605342,3.81091477,1601.2,1601.1,3.2078]
[1744894608437,3.81091477,1601.2,1601.1,4.45729]
[1744894608642,3.81091477,1601.2,1601.1,3.2078]
[1744894609741,1.24949,1601.1,1601.0,1.25892792]
[1744894610042,2.88189,1601.1,1601.0,1.25892792]
[1744894616650,3.76349,1601.1,1601.0,1.25892792]
[1744894617439,0.00937792,1601.3,1601.2,1.24941]
[1744894617647,0.00937792,1601.3,1601.2,4.45721]
[1744894617847,0.00937792,1601.3,1601.2,6.07671]
[1744894618038,0.00937792,1601.3,1601.2,6.88881]
[1744894618440,0.00937792,1601.3,1601.2,8.15957622]
[1744894618843,0.00937792,1601.3,1601.2,7.68094005]
[1744894619442,1.61717792,1601.3,1601.2,7.68094005]
[1744894619842,1.61717792,1601.3,1601.2,8.15971297]
[1744894620950,1.61717792,1601.3,1601.2,8.15972463]
[1744894622047,1.61717792,1601.3,1601.2,8.15970622]
[1744894622552,1.61717792,1601.3,1601.2,7.68094005]
[1744894622851,2.86650792,1601.3,1601.2,5.24934005]
[1744894623546,2.86650792,1601.3,1601.2,4.45721]
[1744894624357,2.86650792,1601.3,1601.2,5.2498567]
[1744894627741,2.86650792,1601.3,1601.2,4.0004467]
[1744894627942,2.86650792,1601.3,1601.2,3.2078]
[1744894628254,1.24949,1601.1,1601.0,4.46671792]
[1744894628445,1.24949,1601.1,1601.0,4.94622936]
[1744894628640,3.69399,1601.1,1601.0,4.94622936]
[1744894629054,3.69399,1601.1,1601.0,5.74016352]
[1744894629254,3.69399,1601.1,1601.0,5.74044238]
[1744894629553,3.69399,1601.1,1601.0,5.7406581]
[1744894630463,1.24945,1601.2,1601.1,1.24949]
[1744894630752,1.24945,1601.2,1601.1,4.20303018]
[1744894631254,2.87195,1601.2,1601.1,2.52343018]
[1744894631454,2.87195,1601.2,1601.1,2.52448531]
[1744894631643,2.87195,1601.2,1601.1,1.27499531]
[1744894632357,2.87195,1601.2,1601.1,2.52448531]
[1744894633457,2.87195,1601.2,1601.1,2.52539778]
[1744894635158,2.87195,1601.2,1601.1,2.52537156]
[1744894635960,2.87195,1601.2,1601.1,4.21097156]
[1744894637054,2.87195,1601.2,1601.1,2.525337]
[1744894638863,2.87195,1601.2,1601.1,2.52548454]
[1744894639864,2.87195,1601.2,1601.1,1.27599454]
[1744894640267,2.87195,1601.2,1601.1,2.52548454]
[1744894642560,2.87195,1601.2,1601.1,1.27616404]
[1744894643064,1.24988,1600.6,1600.5,11.51964455]
[1744894643266,1.24988,1600.6,1600.5,12.76039932]
[1744894643567,1.24988,1600.6,1600.5,11.51044932]
[1744894643868,3.68128,1600.6,1600.5,12.76039932]
[1744894644370,2.4314,1600.6,1600.5,12.76039932]
[1744894644562,2.4314,1600.6,1600.5,14.39909932]
[1744894644761,1.5939,1600.6,1600.5,14.39909932]
[1744894645768,1.24979,1600.8,1600.5,13.14914932]
[1744894646065,2.84369,1600.8,1600.7,4.45754]
[1744894646269,3.62859477,1600.8,1600.7,4.45754]
[1744894646668,3.62859477,1600.8,1600.7,4.4576]
[1744894647363,3.62859477,1600.8,1600.7,3.2078]
[1744894648069,3.62859477,1600.8,1600.7,4.4576]
[1744894648766,3.62859477,1600.8,1600.7,3.2078]
[1744894655072,3.62859477,1600.8,1600.7,4.4576]
[1744894655274,3.62859477,1600.8,1600.7,3.2078]
[1744894657578,3.62859477,1600.8,1600.7,4.4576]
[1744894659182,3.62859477,1600.8,1600.7,3.2078]
[1744894659377,3.62859477,1600.8,1600.7,4.4576]
[1744894663091,2.388,1600.8,1600.7,4.4576]
[1744894663395,1.24972,1600.9,1600.8,1.24965]
[1744894663585,2.88622,1600.9,1600.8,1.24965]
[1744894664785,2.88622,1600.9,1600.8,1.70150703]
[1744894665088,2.88622,1600.9,1600.8,3.46110703]
[1744894665289,2.88622,1600.9,1600.8,5.8613268]
[1744894666394,1.25873792,1601.3,1601.2,1.24941]
[1744894666590,1.68607792,1601.3,1601.2,4.45721]
[1744894666782,1.68607792,1601.3,1601.2,5.68552448]
[1744894666986,0.00937792,1601.3,1601.2,5.68552448]
[1744894667285,0.00937792,1601.3,1601.2,9.57613712]
[1744894667485,0.00937792,1601.3,1601.2,9.06882448]
[1744894668691,1.72277792,1601.3,1601.2,9.06820143]
[1744894669192,0.00937792,1601.3,1601.2,9.06820143]
[1744894670383,0.00937792,1601.3,1601.2,9.06802444]
[1744894670789,0.00937792,1601.3,1601.2,8.27192444]
[1744894671289,1.67197792,1601.3,1601.2,8.27192444]
[1744894672198,1.67197792,1601.3,1601.2,8.2717239]
[1744894672899,0.00937792,1601.3,1601.2,8.2717239]
[1744894673997,0.00937792,1601.3,1601.2,8.27144536]
[1744894676100,0.00937792,1601.3,1601.2,8.27125573]
[1744894677802,0.00937792,1601.3,1601.2,8.27111128]
[1744894679400,1.70827792,1601.3,1601.2,8.27111128]
[1744894679603,1.70827792,1601.3,1601.2,6.51151128]
[1744894679805,1.70827792,1601.3,1601.2,5.68391128]
[1744894680006,1.70827792,1601.3,1601.2,5.23372977]
[1744894680406,2.95760792,1601.3,1601.2,5.23372977]
[1744894680708,2.95760792,1601.3,1601.2,4.45721]
[1744894681709,9.83161792,1601.3,1601.0,4.45733]
[1744894681903,1.24949,1601.1,1601.0,3.2078]
[1744894682303,3.77159,1601.1,1601.0,3.2078]
[1744894682504,3.77159,1601.1,1601.0,4.45736]
[1744894682705,1.24964,1600.9,1600.8,4.45752]
[1744894683109,3.82904,1600.9,1600.8,4.45752]
[1744894684909,3.82904,1600.9,1600.8,3.2078]
[1744894685311,3.82904,1600.9,1600.8,4.45752]
[1744894687420,2.5794,1600.9,1600.8,4.45752]
[1744894687618,3.82904,1600.9,1600.8,4.45752]
[1744894687819,2.5794,1600.9,1600.8,4.45752]
[1744894688025,3.82904,1600.9,1600.8,4.45752]
[1744894701726,1.7442,1600.9,1600.8,4.45752]
[1744894702021,1.7442,1600.9,1600.8,8.30692881]
[1744894702420,2.92015,1601.1,1601.0,1.24956]
[1744894702620,2.92015,1601.1,1601.0,4.45736]
[1744894705232,1.6706,1601.1,1601.0,4.45736]
[1744894705432,1.6706,1601.1,1601.0,5.68646567]
[1744894705633,3.3094,1601.1,1601.0,5.23424825]
[1744894705932,3.3094,1601.1,1601.0,5.68646828]
[1744894706232,0.00937792,1601.3,1601.0,13.81036828]
[1744894706434,0.00937792,1601.3,1601.2,4.45721]
[1744894706634,0.00937792,1601.3,1601.2,5.79023003]
[1744894706832,0.00937792,1601.3,1601.2,7.41598054]
[1744894707336,0.00937792,1601.3,1601.2,8.19286879]
[1744894710546,0.00937792,1601.3,1601.2,7.31225447]
[1744894711045,0.00937792,1601.3,1601.2,5.68645447]
[1744894711239,3.43837792,1601.3,1601.2,5.68645447]
[1744894713142,4.68770792,1601.3,1601.2,5.68645447]
[1744894714246,4.68770792,1601.3,1601.2,4.90956622]
[1744894714447,4.68770792,1601.3,1601.2,5.68671168]
[1744894715646,4.68770792,1601.3,1601.2,2.47891168]
[1744894715842,4.68770792,1601.3,1601.2,3.98494546]
[1744894716244,4.68770792,1601.3,1601.2,5.23435546]
[1744894716642,4.68770792,1601.3,1601.2,3.98494546]
[1744894716843,1.24956,1601.0,1600.9,4.45737]
[1744894717144,1.24956,1601.0,1600.9,4.9096036]
[1744894717543,4.69696,1601.0,1600.9,5.68690272]
[1744894717942,4.69696,1601.0,1600.9,5.68703445]
[1744894718449,9.69696,1601.0,1600.9,1.22966445]
[1744894718647,9.69696,1601.0,1600.9,0.77729912]
[1744894719339,1.24964,1600.9,1600.8,1.24967]
[1744894719541,2.93784,1600.9,1600.8,2.47949097]
[1744894721442,2.93784,1600.9,1600.8,2.02709621]
[1744894721843,2.93784,1600.9,1600.8,1.24967]
[1744894723351,2.93784,1600.9,1600.8,2.02711048]
[1744894723653,2.93784,1600.9,1600.8,1.24967]
[1744894723949,1.6882,1600.9,1600.8,1.24967]
[1744894724152,1.6882,1600.9,1600.8,1.7020335]
[1744894724848,1.6882,1600.9,1600.8,2.4793725]
[1744894725443,1.6882,1600.9,1600.8,2.47933734]
[1744894725653,1.6882,1600.9,1600.8,4.13803734]
[1744894727252,1.6882,1600.9,1600.8,4.13799827]
[1744894728853,0.00937792,1601.3,1601.2,1.24941]
[1744894729056,2.88827792,1601.3,1601.2,1.24941]
[1744894729950,1.63887792,1601.3,1601.2,1.24941]
[1744894730155,3.32677792,1601.3,1601.2,4.45721]
[1744894730347,4.57610792,1601.3,1601.2,4.45721]
[1744894731045,4.57610792,1601.3,1601.2,5.68653252]
[1744894731356,4.57610792,1601.3,1601.2,5.68652925]
[1744894734559,4.57610792,1601.3,1601.2,5.68654531]
[1744894735252,4.57610792,1601.3,1601.2,5.23432288]
[1744894735458,4.57610792,1601.3,1601.2,5.68654512]
[1744894736154,4.57610792,1601.3,1601.2,2.47874512]
[1744894736351,4.57610792,1601.3,1601.2,5.68654512]
[1744894736547,4.57610792,1601.3,1601.2,5.68654002]
[1744894737462,4.57610792,1601.3,1601.2,2.47874002]
[1744894737659,4.57610792,1601.3,1601.2,5.68654002]
[1744894738255,4.57610792,1601.3,1601.2,5.23432288]
[1744894738560,4.57610792,1601.3,1601.2,5.68654894]
[1744894740161,4.57610792,1601.3,1601.2,5.68659118]
[1744894741561,4.57610792,1601.3,1601.2,5.68672872]
[1744894741863,4.57610792,1601.3,1601.2,5.68673944]
[1744894743269,4.57610792,1601.3,1601.2,5.68685961]
[1744894744369,4.57610792,1601.3,1601.2,5.68686179]
[1744894744766,4.57610792,1601.3,1601.2,4.43745179]
[1744894744967,4.57610792,1601.3,1601.2,5.68686179]
[1744894745171,4.57610792,1601.3,1601.2,5.68686411]
[1744894746966,4.57610792,1601.3,1601.2,5.6868402]
[1744894751364,4.57610792,1601.3,1601.2,2.4790402]
[1744894751681,4.57610792,1601.3,1601.2,5.6868402]
[1744894754078,4.57610792,1601.3,1601.2,1.2296302]
[1744894754466,4.57610792,1601.3,1601.2,0.77711288]
[1744894754672,4.57610792,1601.3,1601.2,1.22986425]
[1744894755579,4.57610792,1601.3,1601.2,0.77711288]
[1744894755884,1.24969,1600.9,1600.8,1.24963]
[1744894756068,1.24969,1600.9,1600.8,0.45277438]
[1744894756379,1.24972,1600.8,1600.7,4.45754]
[1744894756581,1.24972,1600.8,1600.7,4.91046578]
[1744894756879,1.24972,1600.8,1600.7,5.68857645]
[1744894758180,1.24972,1600.8,1600.7,5.68887307]
[1744894758376,1.24972,1600.8,1600.7,5.68889251]
[1744894759480,1.24972,1600.8,1600.7,4.43915251]
[1744894759780,1.24972,1600.8,1600.7,5.68895251]
[1744894759980,1.24972,1600.8,1600.7,5.68852347]
[1744894763171,1.24972,1600.8,1600.7,5.68813519]
[1744894763676,2.90852,1600.8,1600.7,5.68809915]
[1744894763870,4.71552,1601.0,1600.7,5.68799915]
[1744894764076,1.24972,1600.8,1600.7,6.94431067]
[1744894764275,1.24972,1600.8,1600.7,6.61858889]
[1744894764774,1.24972,1600.8,1600.7,7.39600416]
[1744894764975,2.87022,1600.8,1600.7,7.39600416]
[1744894765583,2.87022,1600.8,1600.7,7.39591804]
[1744894768181,1.24972,1600.8,1600.7,7.39591804]
[1744894768377,2.94242,1600.8,1600.7,7.39591804]
[1744894769685,2.94242,1600.8,1600.7,7.39615783]
[1744894771084,2.94242,1600.8,1600.7,7.39605527]
[1744894771288,1.24971,1600.9,1600.8,1.24972]
[1744894771491,1.24971,1600.9,1600.8,4.27516]
[1744894771786,1.24945,1601.2,1601.1,1.24941]
[1744894771977,1.6874,1601.2,1601.1,3.2078]
[1744894772283,2.93681,1601.2,1601.1,5.23470527]
[1744894772980,7.92e-06,1601.3,1601.1,5.23470527]
[1744894773181,14.58867124,1601.8,1601.6,1.2491]
[1744894773482,6.40168677,1601.8,1601.7,1.24902]
[1744894773685,6.40168677,1601.8,1601.7,4.27428509]
[1744894773876,6.40168677,1601.8,1601.7,5.05170036]
[1744894774386,14.18499012,1602.0,1601.9,1.24886]
[1744894774585,14.18499012,1602.0,1601.9,4.45666]
[1744894774782,14.18499012,1602.0,1601.9,5.23407527]
[1744894775477,14.18499012,1602.0,1601.9,4.45666]
[1744894776186,15.43377012,1602.0,1601.9,3.2078]
[1744894777184,15.43377012,1602.0,1601.9,4.45666]
[1744894778480,2.93618,1602.0,1601.9,4.45666]
[1744894787184,3.81648,1602.0,1601.9,4.45666]
[1744894789788,3.81648,1602.0,1601.9,3.2078]
[1744894790187,3.81648,1602.0,1601.9,4.45666]
[1744894792197,2.5677,1602.0,1601.9,4.45666]
[1744894792397,0.00937792,1602.1,1602.0,1.24878]
[1744894792886,0.00937792,1602.1,1602.0,7.97018]
[1744894793086,0.00937792,1602.1,1602.0,8.74070813]
[1744894793295,0.00937792,1602.1,1602.0,7.97018]
[1744894793592,0.00937792,1602.1,1602.0,2.97018]
[1744894794495,0.00937792,1602.1,1602.0,3.74101496]
[1744894795394,1.77087792,1602.1,1602.0,2.97018]
[1744894795994,1.77087792,1602.1,1602.0,3.74130935]
[1744894796493,1.77087792,1602.1,1602.0,4.19025063]
[1744894796690,3.01958792,1602.1,1602.0,2.46885063]
[1744894796890,1.77087792,1602.1,1602.0,2.01990935]
[1744894797398,1.77087792,1602.1,1602.0,2.46919912]
[1744894797594,1.77087792,1602.1,1602.0,2.01990935]
[1744894797794,3.01958792,1602.1,1602.0,2.01990935]
[1744894798094,3.81538792,1602.1,1602.0,1.24878]
[1744894800795,2.56667792,1602.1,1602.0,1.24878]
[1744894800991,2.56667792,1602.1,1602.0,1.69963732]
[1744894801297,2.56667792,1602.1,1602.0,2.47441684]
[1744894801798,3.81538792,1602.1,1602.0,2.47513426]
[1744894803302,3.81538792,1602.1,1602.0,1.22635426]
[1744894803801,8.81538792,1602.1,1602.0,0.77477952]
[1744894803994,1.24902,1601.7,1601.6,0.00937792]
[1744894804204,1.24902,1601.7,1601.6,0.46204992]
[1744894804398,4.60572,1601.7,1601.6,0.46204992]
[1744894805099,4.60572,1601.7,1601.6,1.71114992]
[1744894805302,1.6904,1601.7,1601.6,1.71114992]
[1744894805502,1.24884,1602.0,1601.6,1.71114992]
[1744894805503,1.24888,1601.9,1601.8,1.24887]
[1744894805705,1.24888,1601.9,1601.8,4.90892813]
[1744894805706,2.93928,1601.9,1601.8,4.90892813]
[1744894806297,1.6904,1601.9,1601.8,4.90892813]
[1744894806800,2.93926,1601.9,1601.8,4.90892813]
[1744894807097,1.6904,1601.9,1601.8,4.90892813]
[1744894807801,2.93926,1601.9,1601.8,4.90892813]
[1744894808803,1.6904,1601.9,1601.8,4.90892813]
[1744894811105,1.6904,1601.9,1601.8,4.90862517]
[1744894811895,0.00937792,1602.1,1601.8,10.32815517]
[1744894812100,2.92768792,1602.1,1602.0,4.45658]
[1744894812299,2.92768792,1602.1,1602.0,4.90853517]
[1744894813104,1.67897792,1602.1,1602.0,4.90848835]
[1744894813304,1.67897792,1602.1,1602.0,7.42398835]
[1744894814807,1.67897792,1602.1,1602.0,7.42392423]
[1744894815609,2.92768792,1602.1,1602.0,7.42392423]
[1744894815811,2.92768792,1602.1,1602.0,3.65964423]
[1744894816008,2.92768792,1602.1,1602.0,3.2078]
[1744894819707,1.24886,1601.9,1601.8,3.2078]
[1744894819902,1.24886,1601.9,1601.8,4.42895212]
[1744894820111,3.79566,1601.9,1601.8,4.42895212]
[1744894820312,3.79566,1601.9,1601.8,5.67789212]
[1744894820908,2.5468,1601.9,1601.8,5.67789212]
[1744894822309,2.5468,1601.9,1601.8,5.6777413]
[1744894823813,3.79566,1601.9,1601.8,4.4288013]
[1744894824013,3.79566,1601.9,1601.8,4.42895306]
[1744894825516,3.79566,1601.9,1601.8,5.67789306]
[1744894825818,3.79566,1601.9,1601.8,5.67823484]
[1744894827622,3.79566,1601.9,1601.8,5.67847444]
[1744894827917,3.79566,1601.9,1601.8,4.42953444]
[1744894830218,3.79566,1601.9,1601.8,1.22173444]
[1744894830519,1.24902,1601.7,1601.6,0.00937792]
[1744894830919,3.68632,1601.7,1601.6,1.25847792]
[1744894833020,1.5972,1601.7,1601.6,1.25847792]
[1744894833215,1.5972,1601.7,1601.6,2.89177792]
[1744894833415,1.5972,1601.7,1601.6,3.74397792]
[1744894841030,1.5972,1601.7,1601.6,1.25847792]
[1744894842732,1.5972,1601.7,1601.6,2.0149636]
[1744894842928,1.5972,1601.7,1601.6,3.6527636]
[1744894844230,1.6835,1601.9,1601.8,1.24894]
[1744894844430,2.93236,1601.9,1601.8,4.45674]
[1744894845035,2.93236,1601.9,1601.8,5.21322568]
[1744894846429,2.93236,1601.9,1601.8,3.96428568]
[1744894846930,2.93236,1601.9,1601.8,5.21322568]
[1744894847419,4.62366,1601.9,1601.8,5.21322568]
[1744894848732,4.62366,1601.9,1601.8,0.75648568]
[1744894848931,4.62366,1601.9,1601.8,2.00542568]
[1744894849325,3.3748,1601.9,1601.8,5.21322568]
[1744894850032,4.62366,1601.9,1601.8,5.21322568]
[1744894853434,4.62366,1601.9,1601.8,3.96428568]
[1744894854332,4.62366,1601.9,1601.8,0.75648568]
[1744894854730,11.5826,1601.9,1601.6,3.21717792]
[1744894854931,1.24902,1601.7,1601.6,0.00937792]
[1744894855128,1.24902,1601.7,1601.6,4.46627792]
[1744894855329,2.90512,1601.7,1601.6,4.46627792]
[1744894861743,1.6561,1601.7,1601.6,4.46627792]
[1744894861941,1.6835,1601.9,1601.8,1.24894]
[1744894862133,4.68066,1601.9,1601.8,4.45674]
[1744894864746,4.68066,1601.9,1601.8,3.2078]
[1744894864940,1.24902,1601.7,1601.6,12.74118996]
[1744894865440,2.92332,1601.7,1601.6,12.74118996]
[1744894866242,4.80568,1601.9,1601.6,12.74118996]
[1744894866243,2.93242,1601.9,1601.7,1.24902]
[1744894866447,4.55312,1601.9,1601.8,3.2078]
[1744894866946,1.24894,1601.8,1601.7,1.24895]
[1744894867148,2.86964,1601.8,1601.7,1.24895]
[1744894868751,1.24902,1601.7,1601.6,3.21717792]
[1744894869045,2.98122,1601.7,1601.6,4.46627792]
[1744894869750,7.98122,1601.7,1601.6,0.00937792]
[1744894870245,2.98122,1601.7,1601.6,3.21717792]
[1744894870549,2.98122,1601.7,1601.6,4.46627792]
[1744894870847,2.98122,1601.7,1601.6,0.00937792]
[1744894871040,2.98122,1601.7,1601.6,4.46627792]
[1744894875550,1.7322,1601.7,1601.6,4.46627792]
[1744894875752,1.7322,1601.7,1601.6,7.01437792]
[1744894876249,2.9324,1601.9,1601.8,1.24894]
[1744894876549,4.6218,1601.9,1601.8,4.45674]
[1744894877549,4.6218,1601.9,1601.8,6.14154]
[1744894878253,4.6218,1601.9,1601.8,4.45674]
[1744894884057,4.6218,1601.9,1601.8,1.24894]
[1744894885761,4.6218,1601.9,1601.8,4.45674]
[1744894886060,9.6218,1601.9,1601.8,3.2078]
[1744894886256,9.6218,1601.9,1601.8,4.45674]
[1744894886463,9.6218,1601.9,1601.8,3.2078]
[1744894886855,1.24902,1601.7,1601.6,4.46620792]
[1744894887360,2.94462,1601.7,1601.6,4.46620792]
[1744894888655,1.6956,1601.7,1601.6,4.46620792]
[1744894889963,2.94462,1601.7,1601.6,4.46620792]
[1744894892472,2.94462,1601.7,1601.6,3.21717792]
[1744894892771,2.94462,1601.7,1601.6,0.00937792]
[1744894893264,7.94462,1601.7,1601.6,0.00937792]
[1744894893472,1.24925,1601.4,1601.3,20.70913366]
[1744894893665,1.24925,1601.4,1601.3,20.69993843]
[1744894893870,1.24925,1601.4,1601.3,8.27497204]
[1744894893871,2.90615,1601.4,1601.3,8.27497204]
[1744894895867,7.90615,1601.4,1601.3,5.63007204]
[1744894896064,1.24933,1601.3,1601.2,9.68694431]
[1744894896372,1.24941,1601.2,1601.1,7.94090965]
[1744894896566,2.05321,1601.2,1601.1,0.88157357]
[1744894896766,1.24949,1601.1,1601.0,14.87247671]
[1744894896968,4.94761755,1601.1,1601.0,12.70468671]
[1744894897171,9.94761755,1601.1,1601.0,8.38179671]
[1744894897471,9.94761755,1601.1,1601.0,5.82279671]
[1744894897671,9.17339353,1601.1,1600.6,29.32081858]
[1744894897967,4.4576,1600.7,1600.6,3.91079585]
[1744894898271,44.0078,1600.7,1600.1,3.2078]
[1744894898470,1.25011,1600.3,1600.2,1.6396]
[1744894898770,3.12526,1600.4,1599.9,5.30608]
[1744894899071,1.25019,1600.2,1600.1,0.00937792]
[1744894899669,2.87789,1600.2,1600.1,0.00937792]
[1744894902475,1.25954792,1600.3,1600.2,1.25019]
[1744894902675,0.00937792,1600.3,1600.2,6.04859]
[1744894902975,0.00937792,1600.3,1600.2,19.12718279]
[1744894903172,4.9199,1601.0,1600.5,3.12489]
[1744894903475,3.12336,1601.3,1600.8,3.2078]
[1744894903781,1.24954,1601.1,1601.0,1.24955]
[1744894904278,1.24955,1601.1,1601.0,1.24956]
[1744894904471,0.00937792,1601.2,1601.1,1.24949]
[1744894904672,0.00937792,1601.2,1601.1,10.90930487]
[1744894905570,1.25878792,1601.2,1601.1,10.90930487]
[1744894905773,1.25878792,1601.2,1601.1,1.5906]
[1744894906282,1.24949,1601.1,1601.0,3.2078]
[1744894906983,1.24956,1601.0,1600.9,0.00937792]
[1744894907674,2.92516,1601.0,1600.9,0.00937792]
[1744894909581,2.92516,1601.0,1600.9,7.92e-06]